Cogmind - Beta 17 @@@ ROGUE MODE // 2026.08.23 @ 19:58:51 Player: OBLIQUE Result: Destroyed by G-67 Veteran with Plasma Rifle Performance ------------- Evolutions (6) 3000 Regions Visited (19) 3800 Robots Destroyed (349) 1745 Value Destroyed (12945) 12945 Prototype IDs (58) 1160 Alien Tech Used (0) 0 Bonus (5375) 5375 TOTAL SCORE: 28025 Bonus ------- High Alert Combat Kills 2413 Follower Combat Kills 1062 Hunted by Unchained 500 Entered DSFs 500 Aligned with FarCom 300 Met Data Miner 300 Met Imprinter 300 Cogmind --------- Core Integrity 0/1150 Matter 38/300 Energy 86/100 System Corruption 17% Temperature Cool (12) Movement Core (50) Location -4/Armory Parts ------- > --- POWER (1) -------- (None) > --- PROPULSION (6) --- Centrium Wheel > --- UTILITY (7) ------ Improved Target Analyzer > --- WEAPON (5) ------- (None) > --- INVENTORY (5) ---- Layered Heavy Armor Plating Authchip [Propulsion] Authchip [Weapon] Mobile Refinery Mk. CCLXVII Peak State ------------ > --- POWER ------------ Quantum Reactor > --- PROPULSION ------- Biometal Heavy Treads Biometal Heavy Treads Biometal Heavy Treads > --- UTILITY ---------- Advanced Heat Sink Advanced Heat Sink Advanced Cooling System High-capacity Storage Unit Improved Target Analyzer Advanced Thermal Shield Improved Hacking Suite > --- WEAPON ----------- Enhanced Quantum Rifle Enhanced Hardcell Cannon Enhanced Hardcell Cannon Enhanced Hardcell Cannon Advanced Datajack > --- INVENTORY -------- Quantum Reactor Enhanced Armored Medium Treads Enhanced Armored Medium Treads Advanced Heavy Siege Treads Improved Cooling System High-capacity Storage Unit Matter Compressor Makeshift Transmission Jammer Layered Heavy Armor Plating Advanced Hardlight Generator Authchip [R/Combat] Authchip [Propulsion] Authchip [Propulsion] Authchip [Weapon] Authchip [Weapon] Mobile Refinery Mk. CCLXVII Proton Missile Launcher Precision Rocket Launcher [Rating: 151] Favorites ----------- Power Improved Deuterium Engine Engine Improved Deuterium Engine Power Core Light Nuclear Core Reactor Particle Reactor Propulsion Light Treads Treads Light Treads Wheel Centrium Wheel Hover Unit Aerolev Unit Utility High-capacity Storage Unit Device Kinecellerator Storage High-capacity Storage Unit Processor Transport Network Coupler Hackware Hacking Suite Protection Improved Medium Armor Plating Weapon Shotgun Energy Gun Enhanced Quantum Rifle Energy Cannon Long-range Phase Cannon Ballistic Gun Shotgun Ballistic Cannon Enhanced Hardcell Cannon Launcher Proton Missile Launcher Special Weapon Improved Remote Datajack Special Melee Weapon Advanced Datajack Build | -11 -10 -10 -10 -9 -8 -7 -7 -7 -7 -6 -6 -6 -6 -6 -5 -5 -5 -4 -4 ------- Run | Yrd Mat Min Exi Min Mat Fac Low Low Dat Pro Fac Low Low Zio Pro Fac DSF Fac Arm Slots Evolved 12 | . . . . . 4 2 . . . . 2 . . . . 2 . 2 . Power . | . . . . . . . . . . . . . . . . . . . . Propulsion 4 | . . . . . 2 . . . . . 1 . . . . . . 1 . Utility 5 | . . . . . 1 2 . . . . . . . . . 1 . 1 . Weapon 3 | . . . . . 1 . . . . . 1 . . . . 1 . . . Parts Attached 206 | 7 10 1 1 . 36 34 3 6 . 3 15 . 4 6 3 1 8 36 32 Power 19 | 1 1 . . . 4 4 . . . . 2 . . 1 . . 1 3 2 Engine 10 | 1 . . . . 2 4 . . . . 2 . . . . . 1 . . Core 6 | . 1 . . . 2 . . . . . . . . 1 . . . 2 . Reactor 3 | . . . . . . . . . . . . . . . . . . 1 2 Propulsion 56 | 2 2 . . . 14 6 . 1 . 1 2 . 1 2 1 . 4 9 11 Treads 53 | 2 2 . . . 14 5 . 1 . 1 2 . 1 2 1 . 4 8 10 Leg . | . . . . . . . . . . . . . . . . . . . . Wheel 2 | . . . . . . . . . . . . . . . . . . 1 1 Hover 1 | . . . . . . 1 . . . . . . . . . . . . . Flight . | . . . . . . . . . . . . . . . . . . . . Utility 73 | 2 3 1 1 . 10 14 3 3 . 1 5 . 2 3 1 1 3 11 9 Device 30 | 1 1 . . . 2 5 3 1 . 1 1 . 2 1 1 . 1 5 5 Storage 4 | 1 1 . 1 . . . . . . . 1 . . . . . . . . Processor 9 | . . . . . 1 2 . . . . 2 . . 1 . . . . 3 Hackware 15 | . 1 . . . 3 3 . . . . 1 . . . . 1 2 4 . Protection 15 | . . 1 . . 4 4 . 2 . . . . . 1 . . . 2 1 Artifact . | . . . . . . . . . . . . . . . . . . . . Weapon 58 | 2 4 . . . 8 10 . 2 . 1 6 . 1 . 1 . . 13 10 Energy Gun 3 | . . . . . . . . . . . . . . . . . . . 3 Energy Cannon 2 | . . . . . . . . . . . . . . . . . . . 2 Ballistic Gun 41 | 2 4 . . . 6 8 . 2 . 1 6 . 1 . 1 . . 10 . Ballistic Cannon 4 | . . . . . . . . . . . . . . . . . . 2 2 Launcher 4 | . . . . . . 2 . . . . . . . . . . . . 2 Special Weapon 2 | . . . . . 1 . . . . . . . . . . . . . 1 Impact Weapon . | . . . . . . . . . . . . . . . . . . . . Slashing Weapon . | . . . . . . . . . . . . . . . . . . . . Piercing Weapon . | . . . . . . . . . . . . . . . . . . . . Special Melee Weapon 2 | . . . . . 1 . . . . . . . . . . . . 1 . Unidentified Prototypes 15 | . . . . . 1 3 . 1 . . . . . 1 . . . . 9 Corrupted Parts 1 | . . . . . . . . . . 1 . . . . . . . . . System Corruption 3 | . . . . . . . . . . 3 . . . . . . . . . Parts Lost 49 | . . . . . 2 2 . 1 . 7 . . 1 . 3 . 1 7 25 Power 4 | . . . . . . . . . . . . . . . . . . 1 3 Propulsion 17 | . . . . . 1 . . . . 4 . . . . 2 . 1 3 6 Utility 15 | . . . . . . 2 . 1 . 2 . . . . . . . 1 9 Weapon 13 | . . . . . 1 . . . . 1 . . 1 . 1 . . 2 7 Highest Loss Streak 16 | . . . . . 1 1 . 1 . 4 . . 1 . 2 . 1 2 16 To Critical Strikes 3 | . . . . . . . . . . . . . . . 2 . . 1 . Average Backups 17 | 1 9 14 17 19 19 19 19 18 19 17 17 19 18 18 17 16 17 18 17 Power . | . . . . 2 2 1 1 1 1 . . 1 1 1 1 1 . . . Propulsion . | . . . . . 1 1 2 2 2 1 . . . . . . . . 1 Utility 11 | . 5 7 8 8 10 11 11 11 12 12 12 11 12 13 13 12 15 15 12 Weapon 3 | . 4 6 7 7 3 4 4 3 3 2 3 5 4 3 2 2 1 1 1 Tool/Special . | . . . . . . . . . . . . . . . . . . . . Unused Backups 41 | . 2 . 1 1 10 5 1 1 . . . 2 . 2 1 . 7 . 8 Power 5 | . 1 . . . 1 3 . . . . . . . . . . . . . Propulsion 1 | . . . . . . . . . . . . 1 . . . . . . . Utility 21 | . . . 1 . . 1 . 1 . . . 1 . 1 1 . 7 . 8 Weapon 13 | . 1 . . 1 8 1 1 . . . . . . 1 . . . . . Tool/Special 1 | . . . . . 1 . . . . . . . . . . . . . . Average Slot Usage (%) 96 | . 94 100 98 100 96 99 100 99 100 92 87 100 100 100 95 86 94 97 85 Engine 3 | . 2 . . . 3 7 7 7 7 7 6 6 6 3 . . 4 . . Core 3 | . 10 14 14 14 5 . . . . . . . . 2 6 5 . 3 . Treads 29 | . 27 28 28 28 33 29 30 30 30 23 24 33 33 33 29 23 23 30 21 Device 8 | . 12 . . . . 8 10 13 7 9 9 13 13 12 11 11 7 10 16 Storage 8 | . 14 14 14 14 9 7 7 7 7 7 6 6 6 6 6 5 5 5 4 Processor 4 | . . . . . 2 6 7 7 7 7 7 6 6 6 6 5 5 5 4 Hackware 5 | . 1 2 . . 8 7 2 . . . 4 6 6 6 1 4 8 7 4 Protection 5 | . . 11 12 14 6 6 8 7 15 11 1 . . . 6 5 5 4 2 Ballistic Gun 23 | . 23 28 28 28 26 22 23 22 23 22 24 26 25 26 24 23 28 17 9 Ballistic Cannon 1 | . . . . . . . . . . . . . . . . . . 7 9 Peak Build Rating 151 | 7 15 15 15 16 37 56 53 57 54 54 58 58 59 65 67 70 77 120 151 Average Rating 51 | 5 11 13 14 15 25 50 52 52 54 49 52 57 55 59 63 65 71 105 128 On Entrance 46 | . 7 15 13 14 16 37 53 53 54 54 48 57 58 57 64 63 70 77 113 Avg Prop Armor Cover (%) 32 | . . . . . 5 . . . . . . . . . . . . . 36 Naked Turns . | . . . . . . . . . . . . . . . . . . . . Heaviest Build 125 | 15 52 54 54 54 66 83 76 78 78 81 77 77 79 74 82 86 90 125 120 Greatest Support 230 | 40 40 40 40 40 88 90 90 90 90 90 112 112 112 120 126 106 148 176 230 Greatest Overweight (x) 1 | . 1 1 1 1 1 1 . 1 . 1 1 . . . . . 1 . 1 Average Overweight (x) . | . . 1 1 1 . . . . . . . . . . . . . . . Largest Inventory Capacity 20 | 8 20 20 20 20 20 20 20 20 20 20 20 20 20 20 20 20 20 20 20 Average Capacity 19 | 7 17 20 20 20 20 20 20 20 20 20 20 20 20 20 20 20 20 20 19 Most Carried 20 | 2 13 16 20 20 20 20 20 20 20 20 20 20 20 20 20 20 20 20 20 Average Carried 18 | 1 9 14 17 19 19 19 19 19 20 18 18 19 19 19 18 19 19 19 19 Final Capacity 20 | 8 20 20 20 20 20 20 20 20 20 20 20 20 20 20 20 20 20 20 5 Final Carried 20 | 2 12 16 20 20 20 20 20 20 20 16 20 20 20 20 20 18 20 20 5 Class Distribution -------------------- 30% | Scavenger-Skirmisher 22% | Mutant 9% | Scavenger-Tank 9% | Skirmisher 8% | Gunner 7% | Scavenger-Gunner 4% | Fabricator-Skirmisher 3% | Hacker-Skirmisher Dominant Class ---------------- Mutant | -10/Materials Mutant | -10/Mines Mutant | -10/Exiles Mutant | -9/Mines Scavenger-Skirmisher | -8/Materials Gunner | -7/Factory Scavenger-Gunner | -7/Lower Caves Scavenger-Gunner | -7/Lower Caves Scavenger-Tank | -7/Data Miner Scavenger-Tank | -6/Proximity Caves Scavenger-Skirmisher | -6/Factory Scavenger-Tank | -6/Lower Caves Scavenger-Skirmisher | -6/Lower Caves Scavenger-Skirmisher | -6/Zion Scavenger-Tank | -5/Proximity Caves Scavenger-Tank | -5/Factory Scavenger-Skirmisher | -5/DSF Scavenger-Skirmisher | -4/Factory Skirmisher | -4/Armory Resources | -11 -10 -10 -10 -9 -8 -7 -7 -7 -7 -6 -6 -6 -6 -6 -5 -5 -5 -4 -4 ----------- Run | Yrd Mat Min Exi Min Mat Fac Low Low Dat Pro Fac Low Low Zio Pro Fac DSF Fac Arm Matter Collected 14395 | 196 898 154 20 21 1377 2359 284 419 . 743 467 250 459 134 477 . 341 3498 2298 Remotely 2406 | . . . . . . . . . . . . . . . . . . 1215 1191 Salvage Created 15359 | 51 947 173 . 26 1735 3758 438 666 . 632 469 . 491 . 726 . 326 3303 1618 Parts 702 | 3 44 8 . 5 105 169 19 20 . 23 25 . 20 . 32 . 8 154 67 Haulers Intercepted 17 | . 2 . . . 5 4 . 1 . . 1 . . . . . . 4 . Recyclers Shooed 16 | . 3 . . . 1 4 . . . . 3 . . . . . . 5 . Parts Field Recycled . | . . . . . . . . . . . . . . . . . . . . Retrieved Matter . | . . . . . . . . . . . . . . . . . . . . Parts Self-Destructed 103 | . . . . . . . 19 8 . 15 . . 19 4 38 . . . . Prevented 22 | . . . . . . . . 3 . 8 . . 4 . 7 . . . . Parts Restored . | . . . . . . . . . . . . . . . . . . . . Kills | -11 -10 -10 -10 -9 -8 -7 -7 -7 -7 -6 -6 -6 -6 -6 -5 -5 -5 -4 -4 ------- Run | Yrd Mat Min Exi Min Mat Fac Low Low Dat Pro Fac Low Low Zio Pro Fac DSF Fac Arm Combat Hostiles Destroyed 246 | . 12 5 . . 30 51 8 10 . 15 6 . 11 . 16 . 2 44 36 Melee 2 | . . . . . . . . . . . . . . . . . . . 2 Guns 183 | . 12 5 . . 30 36 8 6 . 12 6 . 11 . 11 . 2 27 17 Cannons 19 | . . . . . . . . . . . . . . . . . . 12 7 AOE 42 | . . . . . . 15 . 4 . 3 . . . . 5 . . 5 10 Classes Destroyed 23 | 1 4 1 . 2 3 5 1 1 . 2 1 . . . . . . . 2 Worker 20 | . . . . 1 2 2 . . . . 2 . . . . . . 13 . Builder 12 | . . . . . 3 2 . . . . 2 . . . . . . 5 . Tunneler 2 | . . . . 1 1 . . . . . . . . . . . . . . Hauler 17 | . 2 . . . 5 4 . 1 . . 1 . . . . . . 4 . Recycler 25 | 1 5 1 . . 1 12 . . . . . . . . . . . 5 . Mechanic 2 | . . . . . . . . . . . 1 . . . . . . 1 . Operator 3 | . 3 . . . . . . . . . . . . . . . . . . Drone 3 | . . . . . . . . . . 1 . . . . . . . . 2 Watcher 19 | . 3 . . . 5 4 . . . . 1 . . . . . . 5 1 Swarmer 58 | . . 3 . . 6 8 . . . 7 . . 4 . 9 . . 17 4 Saboteur 2 | . . . . . . . . . . . . . . . . . . . 2 Grunt 95 | . 12 2 . . 15 21 3 7 . 5 . . 6 . 4 . . 8 12 Brawler 7 | . . . . . . 2 1 . . . . . 1 . 1 . 1 . 1 Duelist 8 | . . . . . . 1 . . . . . . . . 1 . . 1 5 Protector 4 | . . . . . . 1 . . . . . . . . . . . . 3 Sentry 29 | . . . . . 8 9 . 1 . 1 4 . . . 1 . . 5 . Demolisher 2 | . . . . . . . . . . . . . . . . . . . 2 Specialist 2 | . . . . . 1 . . . . . . . . . . . . . 1 Hunter 7 | . . . . . . . 3 1 . . 1 . . . . . . 2 . Programmer 29 | . . . . . . 8 1 . . . 1 . . . . . 1 12 6 Heavy 3 | . . . . . . 1 . . . . . . . . . . . . 2 Behemoth 1 | . . . . . . . . . . 1 . . . . . . . . . Mutant 1 | . . . . . . . . 1 . . . . . . . . . . . Best Kill Streak 9 | 1 3 3 . 1 4 9 4 5 . 3 4 . 3 . 6 . 2 9 9 Combat Bots Only 8 | . 2 3 . . 4 8 4 5 . 3 2 . 3 . 6 . 2 6 8 Max Kills in Single Turn 5 | 1 1 1 . 1 3 3 1 2 . 2 2 . 1 . 4 . 1 5 3 Gunslinging 2 | . . . . . . . . . . . . . . . 1 . . 2 . Exploded 4 | . . . . . . 3 . 2 . 1 . . . . 2 . . 4 2 Melee 1 | . . . . . . . . . . . . . . . . . . . 1 Uniques/NPCs Destroyed . | . . . . . . . . . . . . . . . . . . . . Combat | -11 -10 -10 -10 -9 -8 -7 -7 -7 -7 -6 -6 -6 -6 -6 -5 -5 -5 -4 -4 -------- Run | Yrd Mat Min Exi Min Mat Fac Low Low Dat Pro Fac Low Low Zio Pro Fac DSF Fac Arm Hostile Shots Fired 1706 | . 55 31 . . 112 312 45 96 . 167 65 . 47 . 78 . 11 226 461 Missed 523 | . 17 8 . . 34 113 16 34 . 48 20 . 18 . 25 . 2 54 134 Hits 1183 | . 38 23 . . 78 199 29 62 . 119 45 . 29 . 53 . 9 172 327 Melee 35 | . . . . . . 7 . . . . . . 1 . . . . 7 20 Projectile 1148 | . 38 23 . . 78 192 29 62 . 119 45 . 28 . 53 . 9 165 307 AOE 7 | . . . . . 1 . . . . . . . . . . . . . 6 Critical Strikes 66 | . 2 1 . . 3 6 1 . . 1 . . 1 . 4 . . 13 34 Actively Blocked 3 | . . . . . . . . . . . . . . . . . . . 3 Part Disruptions 4 | . . . . . 1 . . 1 . . . . . . . . . . 2 Damage Taken 20567 | . 525 234 . . 1317 2417 429 584 . 1576 134 . 537 . 1077 . 231 3637 7869 Core 1940 | . . 30 . . 63 321 54 12 . 101 5 . 69 . 115 . . 185 985 Absorbed by Shields 218 | . . . . . . . . . . . 218 . . . . . . . . Reduced by Siege Mode 149 | . . . . . . . . . . . . . . . . . . . 149 Redirected to Shielding 151 | . . . . . . . . . . . . . . . . . . . 151 Ignored by Resistances 259 | . . . . . 18 32 25 . . 112 2 . . . . . . 70 . Regen/Repaired (Parts) 2702 | . 404 . . . 119 1131 . . . . . . . . . . . 674 374 Core Remaining (%) 80 | 100 . . . 88 88 . . . . 30 . . . . 77 . 100 . . Volleys Fired 682 | 2 67 15 . . 82 133 16 27 . 43 17 . 25 3 30 . 9 123 90 Largest 5 | 2 2 2 . . 3 3 3 3 . 3 4 . 4 1 4 . 5 5 5 Hottest 305 | 40 46 46 . . 75 95 84 95 . 95 114 . 123 28 120 . 136 219 305 Shots Fired 2202 | 4 131 30 . . 242 377 48 73 . 128 68 . 95 3 104 . 41 574 284 Gun 1901 | 4 131 30 . . 241 359 48 71 . 111 68 . 90 3 96 . 40 469 140 Cannon 225 | . . . . . . . . . . . . . . . . . . 102 123 Launcher 66 | . . . . . . 18 . 2 . 17 . . 5 . 8 . . 3 13 Special 10 | . . . . . 1 . . . . . . . . . . . 1 . 8 Kinetic 2103 | 4 131 30 . . 241 359 48 71 . 111 68 . 90 3 96 . 40 571 240 Thermal 23 | . . . . . . . . . . . . . . . . . . . 23 Explosive 11 | . . . . . . . . . . . . . . . . . . . 11 Electromagnetic 55 | . . . . . . 18 . 2 . 17 . . 5 . 8 . . 3 2 Robot Hit Streak 35 | 2 11 8 . . 15 35 22 21 . 23 21 . 9 . 10 . 9 21 11 Robot Miss Streak 13 | 1 8 4 . . 9 13 1 2 . 6 4 . 4 . 4 . 3 9 3 Penetration Max 2 | . . . . . . . . 1 . 1 1 . 1 . 1 . . 2 1 Secondary Targets 28 | . 1 2 . . 3 6 1 1 . . . . 2 . 3 . . 8 1 Max Gunslinging Chain 2 | . 1 1 . . 1 1 1 1 . . . . 1 . 2 . . 2 1 Shots Hit Robots 1503 | 3 104 25 . . 179 277 41 57 . 86 59 . 59 . 67 . 24 349 173 Core Hits 841 | 1 55 12 . 1 109 144 17 20 . 48 44 . 43 . 34 . 10 204 99 Critical Kills 11 | . . . . . . . . . . 1 . . . . . . 1 8 1 Critical Parts Destroyed 20 | . . . . . . . . 1 . . . . 1 . 1 . . 14 3 Critical Strikes 39 | . . . . . . . . 1 . 1 . . 1 . 1 . 1 25 9 Destroy 33 | . . . . . . . . 1 . 1 . . 1 . 1 . 1 24 4 Blast 6 | . . . . . . . . . . . . . . . . . . 1 5 Melee Attacks 6 | . . . . . . . . . . . . . . . . . . . 6 Impact . | . . . . . . . . . . . . . . . . . . . . Slashing . | . . . . . . . . . . . . . . . . . . . . Piercing . | . . . . . . . . . . . . . . . . . . . . Sneak Attacks 6 | . . . . . . . . . . . . . . . . . . . 6 Combat Hostiles . | . . . . . . . . . . . . . . . . . . . . Follow-up Attacks . | . . . . . . . . . . . . . . . . . . . . Damage Inflicted 40664 | 45 1713 432 . 18 3154 7557 865 1372 . 2012 1418 . 1294 . 1541 . 484 9684 9075 Guns 27704 | 39 1685 403 . . 3051 5958 865 1001 . 1457 1263 . 1158 . 1233 . 484 6299 2808 Cannons 5579 | . . . . . . . . . . . . . . . . . . 2219 3360 Explosions 6620 | . . . . . . 1480 . 371 . 555 . . 136 . 308 . . 901 2869 Melee . | . . . . . . . . . . . . . . . . . . . . Ramming 761 | 6 28 29 . 18 103 119 . . . . 155 . . . . . . 265 38 Kinetic 32681 | 39 1685 403 . . 3051 5958 865 1001 . 1457 1263 . 1158 . 1233 . 484 8518 5566 Thermal 1078 | . . . . . . 192 . 136 . . . . . . . . . 148 602 Explosive 3321 | . . . . . . . . . . . . . . . . . . 595 2726 Electromagnetic 2823 | . . . . . . 1288 . 235 . 555 . . 136 . 308 . . 158 143 Impact . | . . . . . . . . . . . . . . . . . . . . Slashing . | . . . . . . . . . . . . . . . . . . . . Piercing . | . . . . . . . . . . . . . . . . . . . . Highest Corruption 17 | . 1 1 1 1 . 2 3 3 3 7 . . . . . . 3 10 17 Average Corruption 3 | . 1 1 1 1 . 1 2 3 3 3 . . . . . . 2 4 12 Corruption Purged 1 | . . . . . . 1 . . . . . . . . . . . . . Corruption Blocked 2 | . . . . . . 2 . . . . . . . . . . . . . Effects 238 | . 5 17 8 2 . 37 10 15 4 15 . . . . . . 1 59 65 Message Errors 47 | . 2 5 3 1 . 8 2 2 1 2 . . . . . . 1 11 9 Matter Fused 57 | . 1 4 2 . . 10 3 4 1 4 . . . . . . . 13 15 Heat Flow Errors 29 | . 2 3 . . . 5 2 3 . 1 . . . . . . . 7 6 Energy Discharges 22 | . . 1 . . . 5 2 1 1 1 . . . . . . . 4 7 Parts Rejected 8 | . . . . . . 2 . 2 . . . . . . . . . . 4 Parts Fused 5 | . . . 1 . . 1 . . . 3 . . . . . . . . . Data Loss (minor) 37 | . . 2 1 1 . 4 1 2 1 1 . . . . . . . 11 13 Data Loss (major) 8 | . . 1 1 . . . . . . 2 . . . . . . . 3 1 Misfires 7 | . . . . . . 1 . . . . . . . . . . . 3 3 Alerts 8 | . . 1 . . . 1 . . . . . . . . . . . 5 1 Weapon Failures 10 | . . . . . . . . 1 . 1 . . . . . . . 2 6 Overload Shots . | . . . . . . . . . . . . . . . . . . . . Overflow Damage 592 | . . . . . 1 21 . . . . . . . . . . . 296 274 Projectiles 278 | . . . . . . . . . . . . . . . . . . 132 146 Explosions 302 | . . . . . . 21 . . . . . . . . . . . 153 128 Melee 12 | . . . . . 1 . . . . . . . . . . . . 11 . Knockbacks 35 | . . 1 . . . 1 . . . . 3 . . . . . . 13 17 Impact 9 | . . 1 . . . 1 . . . . 3 . . . . . . 4 . Kinetic 26 | . . . . . . . . . . . . . . . . . . 9 17 Secondary . | . . . . . . . . . . . . . . . . . . . . Self-Inflicted Damage 477 | . . . . . . 15 . . . 26 . . 8 . 80 . . 6 342 Shots 13 | . . . . . . 1 . . . 2 . . 1 . 2 . . 1 6 Rammed 59 | 1 7 4 . 2 9 8 . . . . 10 . . . . . . 14 4 Targets Rammed 75 | 1 7 4 . 3 10 10 . . . . 13 . . . . . . 21 6 Kicked . | . . . . . . . . . . . . . . . . . . . . Crushed 16 | . . . . 1 1 2 . . . . 3 . . . . . . 7 2 Highest Temperature 519 | . 211 268 . . 145 263 255 273 . 519 61 . 81 . 21 . . 311 227 Average Temperature 71 | . 29 89 . . 26 58 69 75 . 135 20 . 38 . 8 . . 91 83 Received Heat Transfer 4052 | . 315 87 . . 369 618 99 224 . 351 57 . 183 . 246 . . 254 1249 Effects 15 | . . 2 . . . . . . . 13 . . . . . . . . . Shutdowns 2 | . . . . . . . . . . 2 . . . . . . . . . Interference 5 | . . 2 . . . . . . . 3 . . . . . . . . . Matter Decay 1 | . . . . . . . . . . 1 . . . . . . . . . Damage (major) 7 | . . . . . . . . . . 7 . . . . . . . . . Siege Activations 2 | . . . . . . . . . . . . . . . . . . . 2 Total Turns 76 | . . . . . . . . . . . . . . . . . . . 76 Longest Duration 69 | . . . . . . . . . . . . . . . . . . . 69 Martial Activations . | . . . . . . . . . . . . . . . . . . . . Shielding Activations . | . . . . . . . . . . . . . . . . . . . . Robots Disrupted . | . . . . . . . . . . . . . . . . . . . . Combat Hostiles . | . . . . . . . . . . . . . . . . . . . . Robots Corrupted 2 | . . . . . 1 . . . . . . . . . . . . 1 . Combat Hostiles . | . . . . . . . . . . . . . . . . . . . . Parts Fried 7 | . . . . . 1 1 . 1 . 1 1 . . . . . . 2 . Impact Corruptions 5 | . . . . . 1 . . . . . 1 . . . . . . 3 . Robots Melted . | . . . . . . . . . . . . . . . . . . . . Combat Hostiles . | . . . . . . . . . . . . . . . . . . . . Parts Melted 5 | . . . . . . . . . . . . . . . 1 . . 1 3 Heat Transferred 1342 | . . . . . . 300 . 100 . . . . . . . . . 100 842 Parts Sabotaged 3 | . . . . . . . . . . . . . . . . . . . 3 Parts Stolen . | . . . . . . . . . . . . . . . . . . . . Parts Stripped . | . . . . . . . . . . . . . . . . . . . . Power Chain Reactions 10 | . . . . . . 5 . 1 . 2 . . . . 2 . . . . Alert | -11 -10 -10 -10 -9 -8 -7 -7 -7 -7 -6 -6 -6 -6 -6 -5 -5 -5 -4 -4 ------- Run | Yrd Mat Min Exi Min Mat Fac Low Low Dat Pro Fac Low Low Zio Pro Fac DSF Fac Arm Maximum Alert Level 4 | . . . . . 1 3 . . . . 3 . . . . . . 4 4 Low Security (%) 39 | 100 100 100 . 100 30 17 . . . . . . . . . 100 100 3 . Level 1 21 | . . . . . 69 30 . . . . . . . . . . . 9 . Level 2 19 | . . . . . . 41 . . . . 55 . . . . . . 5 48 Level 3 19 | . . . . . . 10 . . . . 44 . . . . . . 79 44 Level 4 . | . . . . . . . . . . . . . . . . . . 2 6 Level 5 . | . . . . . . . . . . . . . . . . . . . . High Security . | . . . . . . . . . . . . . . . . . . . . Max Security . | . . . . . . . . . . . . . . . . . . . . Peak Influence 1213 | 5 89 60 . 5 369 869 . . . . 853 . . . . 113 160 1183 1213 Initial 676 | . . . . . . 120 . . . . 676 . . . . 93 46 84 578 Average 348 | . 13 5 . . 236 397 . . . . 696 . . . . 93 47 745 738 Influence Increases 10145 | 5 400 130 . 10 1281 1929 180 195 . 462 1085 . 295 . 490 43 124 1915 1601 Destroy 0b10 Robot/C 5320 | . 240 100 . . 640 1060 160 180 . 320 140 . 220 . 420 . 60 1000 780 Destroy 0b10 Robot/NC 550 | 5 65 5 . 10 85 135 . 5 . 5 35 . . . . . 10 170 20 Destroy Leader 1144 | . 60 20 . . 190 288 20 10 . 40 64 . 30 . 40 . 10 218 154 Allied During Kill 355 | . . . . . 3 26 . . . 22 21 . . . 15 . 25 117 126 Successful Hack 349 | . 35 5 . . 57 131 . . . . 21 . . . . 43 . 30 27 Select Force Hacks 50 | . . . . . . . . . . . . . . . . . . . 50 Disable Machine 255 | . . . . . . 30 . . . . . . . . . . 15 75 135 Anti-Garrison Action 600 | . . . . . 200 200 . . . . 200 . . . . . . . . Destroy Structure 502 | . . . . . 1 29 . . . . 4 . . . . . 4 230 234 Advance Influence 600 | . . . . . . . . . . . 600 . . . . . . . . Partial Spotted 30 | . . . . . 15 . . . . . . . . . . . . 15 . Lose Combat Pursuer 390 | . . . . . 90 30 . . . 75 . . 45 . 15 . . 60 75 Influence Decreases 8932 | 5 400 130 . 10 1016 1325 678 400 166 340 480 508 330 184 342 125 30 894 1569 Entered New Map 2001 | . . . . . . 145 322 72 166 . 46 270 42 184 . 55 20 76 603 Time Decay 5461 | 5 400 130 . 10 696 770 356 318 . 320 334 238 278 . 292 70 . 688 556 Search Patrol Dispatched 100 | . . . . . . . . . . . 100 . . . . . . . . Lost Part 440 | . . . . . 20 20 . 10 . 20 . . 10 . 30 . 10 70 250 Lost Ally 330 | . . . . . . 90 . . . . . . . . 20 . . 60 160 Purge Threat 600 | . . . . . 300 300 . . . . . . . . . . . . . Squads Dispatched 57 | . 1 . . . 5 19 . . . . 3 . . . 1 . . 13 15 Investigation 6 | . . . . . 2 2 . . . . 1 . . . . . . . 1 Extermination 20 | . . . . . . 9 . . . . 1 . . . . . . 6 4 Reinforcement 15 | . 1 . . . 3 5 . . . . . . . . . . . 3 3 Assault 15 | . . . . . . 3 . . . . 1 . . . 1 . . 3 7 Garrison 1 | . . . . . . . . . . . . . . . . . . 1 . Intercept . | . . . . . . . . . . . . . . . . . . . . Searches Triggered 1 | . . . . . . . . . . . 1 . . . . . . . . Data Miner Redirects 6 | . . . . . . . . . . . . . . . . . . 2 4 Construction Impeded 3 | . . . . . . 2 . . . . . . . . . . . 1 . Haulers Reinforced 1 | . . . . . . 1 . . . . . . . . . . . . . Active Scanning Responses . | . . . . . . . . . . . . . . . . . . . . Cargo Convoy Interrupts . | . . . . . . . . . . . . . . . . . . . . Stealth | -11 -10 -10 -10 -9 -8 -7 -7 -7 -7 -6 -6 -6 -6 -6 -5 -5 -5 -4 -4 --------- Run | Yrd Mat Min Exi Min Mat Fac Low Low Dat Pro Fac Low Low Zio Pro Fac DSF Fac Arm Distress Signals 12 | . . . . . 2 2 . . . 1 1 . . . . . . 3 3 Communications Jammed 27 | . . . . . . . . . . . 1 . . . . . . 23 3 Distress Signals 27 | . . . . . . . . . . . 1 . . . . . . 23 3 Times Spotted 384 | . 24 5 . . 47 67 8 12 . 23 11 . 16 . 25 . 4 71 71 Peak Tracking Total 19 | . 2 3 . . 4 6 4 5 . 4 2 . 4 . 9 . 2 5 19 Tactical Retreats 16 | . . . . . 5 2 . . . 2 . . 2 . 1 . . 2 2 Traps | -11 -10 -10 -10 -9 -8 -7 -7 -7 -7 -6 -6 -6 -6 -6 -5 -5 -5 -4 -4 ------- Run | Yrd Mat Min Exi Min Mat Fac Low Low Dat Pro Fac Low Low Zio Pro Fac DSF Fac Arm Traps Triggered 20 | . 2 . . . . 9 . . . . . . . . . . 1 2 6 Indirectly 1 | . . . . . . 1 . . . . . . . . . . . . . Trap Hack Attempts 34 | . . . . . . . . . . . . . . . . . . 34 . Triggered . | . . . . . . . . . . . . . . . . . . . . Disarmed 3 | . . . . . . . . . . . . . . . . . . 3 . Reprogrammed 2 | . . . . . . . . . . . . . . . . . . 2 . Reused . | . . . . . . . . . . . . . . . . . . . . Traps Extracted . | . . . . . . . . . . . . . . . . . . . . Installed 2 | . . . . . . . . . . . . . . . . . 2 . . Triggered . | . . . . . . . . . . . . . . . . . . . . Most Traps Carried 2 | . . . . . . . . . . . . . . . 2 2 2 . . Machines | -11 -10 -10 -10 -9 -8 -7 -7 -7 -7 -6 -6 -6 -6 -6 -5 -5 -5 -4 -4 ---------- Run | Yrd Mat Min Exi Min Mat Fac Low Low Dat Pro Fac Low Low Zio Pro Fac DSF Fac Arm Machines Disabled 24 | . . . . . . 2 . 1 . . . . . . . . 1 11 9 Max in Single Turn 5 | . . . . . . 1 . 1 . . . . . . . . 1 5 1 Garrison Access 6 | . . . . . 1 3 . . . . 1 . . . . . . 1 . Energy Cycler 1 | . . . . . . . . . . . . . . . . . . . 1 Machines Repaired . | . . . . . . . . . . . . . . . . . . . . Machines Dismantled . | . . . . . . . . . . . . . . . . . . . . Machines Sabotaged 1 | . . . . . . . . . . . . . . . . . . . 1 Overloaded Fab Kills . | . . . . . . . . . . . . . . . . . . . . Hacking | -11 -10 -10 -10 -9 -8 -7 -7 -7 -7 -6 -6 -6 -6 -6 -5 -5 -5 -4 -4 --------- Run | Yrd Mat Min Exi Min Mat Fac Low Low Dat Pro Fac Low Low Zio Pro Fac DSF Fac Arm Machines Accessed 81 | . 11 2 2 1 16 29 . . 3 . 4 1 . . . 3 . 6 3 Terminals 41 | . 8 2 . . 10 14 . . . . 1 . . . . 2 . 2 2 Fabricators 5 | . . . . . . 3 . . . . . . . . . 1 . 1 . Repair Stations 9 | . 1 . . . 1 3 . . . . 1 . . . . . . 2 1 Recycling Units 9 | . 2 . . . 2 5 . . . . . . . . . . . . . Scanalyzers 4 | . . . . . 2 1 . . . . 1 . . . . . . . . Garrison Access 6 | . . . . . 1 3 . . . . 1 . . . . . . 1 . Total Hacks 287 | . 43 7 5 1 55 105 . . 25 . 10 1 . . . 6 . 20 9 Successful 197 | . 29 5 5 1 42 62 . . 25 . 3 1 . . . 4 . 12 8 Failed 87 | . 14 2 . . 12 42 . . . . 6 . . . . 2 . 8 1 Catastrophic 10 | . 3 . . . 2 4 . . . . . . . . . 1 . . . Database Lockouts 3 | . . . . . 1 1 . . . . 1 . . . . . . . . Manual 118 | . 27 7 1 . 26 45 . . . . 6 . . . . 2 . 2 2 Terminals 130 | . 27 7 . . 37 42 . . . . 2 . . . . 4 . 4 7 Fabricators 18 | . . . . . . 9 . . . . . . . . . 2 . 7 . Repair Stations 65 | . 12 . . . 5 37 . . . . 1 . . . . . . 8 2 Recycling Units 19 | . 4 . . . 5 10 . . . . . . . . . . . . . Scanalyzers 12 | . . . . . 7 3 . . . . 2 . . . . . . . . Garrison Access 11 | . . . . . 1 4 . . . . 5 . . . . . . 1 . Terminal Hacks 87 | . 10 5 5 1 21 12 . . 25 . 1 1 . . . 2 . . 4 Record 6 | . . . 4 . . . . . 2 . . . . . . . . . . Part Schematic 13 | . . . . . . . . . 13 . . . . . . . . . . Robot Schematic 7 | . . . . . . . . . 7 . . . . . . . . . . Robot Analysis 5 | . 3 . . . 2 . . . . . . . . . . . . . . Prototype ID Bank 10 | . 2 4 . . 1 . . . 3 . . . . . . . . . . Open Door 3 | . . . . 1 . . . . . . . 1 . . . . . . 1 Open DSF 1 | . . . . . . . . . . . . . . . . 1 . . . Level Access Points 1 | . . . . . . . . . . . . . . . . . . . 1 Branch Access Points 3 | . . . . . 1 1 . . . . . . . . . 1 . . . Emergency Access Points 2 | . . . . . . 1 . . . . . . . . . . . . 1 Terminal Index 3 | . 1 . . . 1 1 . . . . . . . . . . . . . Repair Station Index 1 | . . . . . 1 . . . . . . . . . . . . . . Recycling Unit Index 1 | . . . . . 1 . . . . . . . . . . . . . . Scanalyzer Index 1 | . . . . . 1 . . . . . . . . . . . . . . Alert Level 8 | . 1 . . . 3 4 . . . . . . . . . . . . . Unreport Threat 4 | . . . . . 2 2 . . . . . . . . . . . . . Locate Traps 10 | . 2 . . . 5 2 . . . . 1 . . . . . . . . Dispatch Records 3 | . 1 1 . . 1 . . . . . . . . . . . . . . Hauler Manifests 2 | . . . . . 1 1 . . . . . . . . . . . . . Zone Layout 2 | . . . . . 1 . . . . . . . . . . . . . 1 Proto ID Catalog 1 | . . . 1 . . . . . . . . . . . . . . . . Fabricator Hacks 10 | . . . . . . 2 . . . . . . . . . 1 . 7 . Network Status 2 | . . . . . . 2 . . . . . . . . . . . . . Load Schematic 3 | . . . . . . . . . . . . . . . . . . 3 . Build 5 | . . . . . . . . . . . . . . . . 1 . 4 . Repair Station Hacks 50 | . 12 . . . 4 29 . . . . . . . . . . . 3 2 Scan Component 26 | . 6 . . . 2 15 . . . . . . . . . . . 2 1 Repair 24 | . 6 . . . 2 14 . . . . . . . . . . . 1 1 Recycling Unit Hacks 1 | . . . . . 1 . . . . . . . . . . . . . . Report Inventory 1 | . . . . . 1 . . . . . . . . . . . . . . Scanalyzer 9 | . . . . . 6 2 . . . . 1 . . . . . . . . Insert Component 5 | . . . . . 5 . . . . . . . . . . . . . . Analyze 1 | . . . . . 1 . . . . . . . . . . . . . . Retrieve Study 3 | . . . . . . 2 . . . . 1 . . . . . . . . Garrison Access Hacks 3 | . . . . . . 2 . . . . . . . . . . . 1 . Seal Access 3 | . . . . . . 2 . . . . . . . . . . . 1 . Unauthorized Hacks 37 | . 7 . . . 10 15 . . . . 1 . . . . 1 . 1 2 Terminals 19 | . 5 . . . 5 5 . . . . . . . . . 1 . 1 2 Assimilate 6 | . 3 . . . 1 2 . . . . . . . . . . . . . Botnet 10 | . 1 . . . 4 3 . . . . . . . . . 1 . 1 . Detonate 1 | . . . . . . . . . . . . . . . . . . . 1 Operators 1 | . 1 . . . . . . . . . . . . . . . . . . Sabotage 1 | . . . . . . . . . . . . . . . . . . . 1 Fabricators 4 | . . . . . . 4 . . . . . . . . . . . . . Report 1 | . . . . . . 1 . . . . . . . . . . . . . Liberate 3 | . . . . . . 3 . . . . . . . . . . . . . Repair Stations . | . . . . . . . . . . . . . . . . . . . . Recycling Units 11 | . 2 . . . 4 5 . . . . . . . . . . . . . Reject 5 | . 1 . . . 2 2 . . . . . . . . . . . . . Mask 6 | . 1 . . . 2 3 . . . . . . . . . . . . . Scanalyzers . | . . . . . . . . . . . . . . . . . . . . Garrison Access 3 | . . . . . 1 1 . . . . 1 . . . . . . . . Jam 3 | . . . . . 1 1 . . . . 1 . . . . . . . . Data Cores Recovered 1 | . . . . . . 1 . . . . . . . . . . . . . Used 1 | . . . . . . 1 . . . . . . . . . . . . . Hacking Detections 66 | . 11 2 . . 15 26 . . . . 4 . . . . 2 . 4 2 Full Trace Events 4 | . 2 . . . 1 1 . . . . . . . . . . . . . Feedback Events . | . . . . . . . . . . . . . . . . . . . . Feedback Blocked . | . . . . . . . . . . . . . . . . . . . . Robot Schematics Acquired 10 | . . . . . . . . . 7 . . . . 3 . . . . . Robots Built 3 | . . . . . . . . . . . . . . . . 3 . . . Authchips . | . . . . . . . . . . . . . . . . . . . . Time 84 | . . . . . . . . . . . . . . . . 84 . . . Total Robot Build Rating 18 | . . . . . . . . . . . . . . . . 18 . . . Part Schematics Acquired 28 | . . . . . 1 . . . 13 . . . . 14 . . . . . Parts Built 7 | . . . . . . . . . . . . . . . . . . 7 . Authchips 4 | . . . . . . . . . . . . . . . . . . 4 . Time 503 | . . . . . . . . . . . . . . . . . . 503 . Total Part Build Rating 47 | . . . . . . . . . . . . . . . . . . 47 . Part Studies Acquired 3 | . . . . . . 2 . . . . 1 . . . . . . . . Parts Repaired 24 | . 6 . . . 2 14 . . . . . . . . . . . 1 1 Time 989 | . 180 . . . 32 675 . . . . . . . . . . . 28 74 Parts Recycled . | . . . . . . . . . . . . . . . . . . . . Recycled Matter . | . . . . . . . . . . . . . . . . . . . . Retrieved Matter . | . . . . . . . . . . . . . . . . . . . . Retrieved Components . | . . . . . . . . . . . . . . . . . . . . Parts Scanalyzed 1 | . . . . . 1 . . . . . . . . . . . . . . Part Schematics Acquired 1 | . . . . . 1 . . . . . . . . . . . . . . Parts Damaged . | . . . . . . . . . . . . . . . . . . . . Bothacking | -11 -10 -10 -10 -9 -8 -7 -7 -7 -7 -6 -6 -6 -6 -6 -5 -5 -5 -4 -4 ------------ Run | Yrd Mat Min Exi Min Mat Fac Low Low Dat Pro Fac Low Low Zio Pro Fac DSF Fac Arm Used RIF Installer . | . . . . . . . . . . . . . . . . . . . . Robots Hacked . | . . . . . . . . . . . . . . . . . . . . Non-combat . | . . . . . . . . . . . . . . . . . . . . Combat . | . . . . . . . . . . . . . . . . . . . . Robot Hacks Applied . | . . . . . . . . . . . . . . . . . . . . Relay Couplers Released . | . . . . . . . . . . . . . . . . . . . . Fabnet Peak Effective % . | . . . . . . . . . . . . . . . . . . . . Robots Rewired 7 | . . . . . . . . . . . . . . . 1 . . . 6 Allies Hacked . | . . . . . . . . . . . . . . . . . . . . Hacks Repelled . | . . . . . . . . . . . . . . . . . . . . Allies | -11 -10 -10 -10 -9 -8 -7 -7 -7 -7 -6 -6 -6 -6 -6 -5 -5 -5 -4 -4 -------- Run | Yrd Mat Min Exi Min Mat Fac Low Low Dat Pro Fac Low Low Zio Pro Fac DSF Fac Arm Total Allies 28 | . . 1 . . 1 5 . . . 1 . . 1 . 2 3 1 3 10 Largest Group 5 | . . 1 . . 1 3 . . . 1 1 . 1 . 2 3 4 3 5 Highest-Rated Group 239 | . . 31 . . 90 90 . . . 96 96 . 29 . 69 90 232 202 239 Highest-Rated Ally 142 | . . 31 . . 90 90 . . . 96 96 . 29 . 40 30 142 142 68 Total Orders . | . . . . . . . . . . . . . . . . . . . . Ally Attacks 196 | . . . . . 3 55 . . . 7 10 . 7 . 26 . 8 45 35 Total Damage 4816 | . . . . . 77 885 . . . 333 240 . 20 . 284 . 430 1810 737 Kills 29 | . . . . . 2 5 . . . 2 1 . . . 5 . 1 7 6 Allies Corrupted . | . . . . . . . . . . . . . . . . . . . . Allies Melted . | . . . . . . . . . . . . . . . . . . . . Field Lobotomies 5 | . . . . . 1 . . . . . . . . . . . 1 . 3 Intel | -11 -10 -10 -10 -9 -8 -7 -7 -7 -7 -6 -6 -6 -6 -6 -5 -5 -5 -4 -4 ------- Run | Yrd Mat Min Exi Min Mat Fac Low Low Dat Pro Fac Low Low Zio Pro Fac DSF Fac Arm Active Infowar (turns) 14055 | . 2502 . . . . 196 628 706 120 899 596 501 607 2344 671 141 623 2771 750 Optics 223 | . . . . . . . . . . . 211 . . . . . . . 12 Sensors 2353 | . . . . . . . 628 706 120 899 . . . . . . . . . Seismic 2502 | . 2502 . . . . . . . . . . . . . . . . . . T.N.C. 8906 | . . . . . . . . . . . 510 501 607 2344 671 141 623 2771 738 Jamming 2425 | . . . . . . 196 . . . . 152 . . . . . . 1874 203 Robot Analysis Total 5 | . 3 . . . 2 . . . . . . . . . . . . . . Derelict Logs Recovered 10 | . . 2 . 1 . . . 1 . 1 . 1 1 1 2 . . . . Drone Launches 50 | . . . . . . 13 . . . . . . 7 . 14 . . 7 9 Drone Recoveries 44 | . . . . . . 13 . . . . . . 7 . 13 . . 7 4 Exploration | -11 -10 -10 -10 -9 -8 -7 -7 -7 -7 -6 -6 -6 -6 -6 -5 -5 -5 -4 -4 ------------- Run | Yrd Mat Min Exi Min Mat Fac Low Low Dat Pro Fac Low Low Zio Pro Fac DSF Fac Arm Turns Passed 28135 | 137 2950 1548 834 502 3115 6436 810 706 120 932 749 501 607 2344 671 141 623 2771 1638 Spaces Moved 12199 | 76 1092 619 345 206 1390 2783 455 360 75 398 397 324 328 1061 351 37 277 999 626 Core 71 | 5 . . . . . . . . . . . . . . . . . . 66 Treads 12128 | 71 1092 619 345 206 1390 2783 455 360 75 398 397 324 328 1061 351 37 277 999 560 Legs . | . . . . . . . . . . . . . . . . . . . . Wheels . | . . . . . . . . . . . . . . . . . . . . Hover . | . . . . . . . . . . . . . . . . . . . . Flight . | . . . . . . . . . . . . . . . . . . . . Fastest Speed 50 | 50 160 240 240 240 145 145 161 161 161 150 150 154 154 156 156 156 156 160 50 Average Speed 172 | 152 217 240 240 240 167 154 161 161 161 181 151 154 154 156 156 156 186 165 143 Slowest Speed 253 | 160 240 240 240 240 240 206 161 224 161 250 203 154 156 156 159 156 253 170 240 Overloaded Moves . | . . . . . . . . . . . . . . . . . . . . Propulsion Burnouts . | . . . . . . . . . . . . . . . . . . . . Robots Hopped . | . . . . . . . . . . . . . . . . . . . . Potential Cave-ins . | . . . . . . . . . . . . . . . . . . . . Cave-ins Triggered . | . . . . . . . . . . . . . . . . . . . . Exploration Rate (%) 56 | 4 98 98 69 45 94 73 58 58 68 60 15 47 54 86 55 2 90 22 36 Regions Visited 19 Branch Regions 12 Pre-discovered Areas 6 | . . . 1 1 . . . . 1 . . 1 . 2 . . . . . Known Exits Taken 5 | . . . 1 . . 1 . . . . 1 . . . 1 1 . . . Unknown Exits Taken 13 | 1 1 1 . 1 1 . 1 1 1 1 . 1 1 1 . . . 1 . Scrap Searched 20 | . . 3 . . . . 3 2 . 3 . 2 1 3 3 . . . . Spaces Dug . | . . . . . . . . . . . . . . . . . . . . Terrain Destroyed 338 | . . . . . . 22 . 10 . 7 . . 2 . 13 . 2 104 178 Melee . | . . . . . . . . . . . . . . . . . . . . Projectile 139 | . . . . . . . . 1 . 1 . . 2 . 2 . 2 62 69 AOE 196 | . . . . . . 22 . 9 . 5 . . . . 11 . . 41 108 Terrain Rammed . | . . . . . . . . . . . . . . . . . . . . Walls Destroyed . | . . . . . . . . . . . . . . . . . . . . Machines Disabled . | . . . . . . . . . . . . . . . . . . . . Actions | -11 -10 -10 -10 -9 -8 -7 -7 -7 -7 -6 -6 -6 -6 -6 -5 -5 -5 -4 -4 --------- Run | Yrd Mat Min Exi Min Mat Fac Low Low Dat Pro Fac Low Low Zio Pro Fac DSF Fac Arm Total 17741 | 89 1529 646 353 212 2001 4630 497 426 74 504 494 327 368 1750 407 122 363 1788 1161 Wait 4037 | 2 321 3 1 . 419 1578 12 22 . 42 31 . 4 659 5 82 37 497 322 Move 12181 | 75 1091 618 344 205 1389 2782 454 359 74 397 397 323 327 1060 350 36 276 998 626 Hop . | . . . . . . . . . . . . . . . . . . . . Pick Up 119 | 2 15 5 4 2 18 18 3 2 . 3 7 2 1 6 4 1 11 13 2 Fast Attach 119 | 7 5 . 1 . 9 27 2 4 . 1 4 . . 2 1 . 3 8 45 Attach 43 | . 1 . . 1 4 6 . . . 6 1 . 1 . 1 2 . 9 11 Detach 19 | . 2 . 1 . 2 4 . . . . 2 . . 1 . . 1 . 6 Swap 223 | . 10 1 . . 31 45 5 6 . 11 14 . 8 9 7 . 9 47 20 Drop 183 | . 10 . 2 1 37 27 5 6 . 1 9 2 2 10 2 1 13 28 27 Fire 682 | 2 67 15 . . 82 133 16 27 . 43 17 . 25 3 30 . 9 123 90 Melee 6 | . . . . . . . . . . . . . . . . . . . 6 Ram . | . . . . . . . . . . . . . . . . . . . . Kick . | . . . . . . . . . . . . . . . . . . . . Crush 74 | 1 7 4 . 3 10 10 . . . . 12 . . . . . . 21 6 Escape Stasis . | . . . . . . . . . . . . . . . . . . . . Rewire 19 | . . . . . . . . . . . . . . . 7 . 2 10 . Trap 36 | . . . . . . . . . . . . . . . . . 2 34 . Miscellaneous . | . . . . . . . . . . . . . . . . . . . . Route ------- -11/Scrapyard -10/Materials (discovered 6 exits: [*Mat x3] / *Min x2 / [*Sub]) -10/Mines (discovered 3 exits: [*Mat x2] / *Exi) -10/Exiles (discovered 2 exits: *Min x2) -9/Mines -8/Materials (discovered 3 exits: *Fac x3) -7/Factory (discovered 5 exits: *Fac x3 / *Low x2) -7/Lower Caves -7/Lower Caves (discovered 2 exits: *Fac / *Dat) -7/Data Miner -6/Proximity Caves -6/Factory (discovered 3 exits: *Low x2 / Ext) -6/Lower Caves -6/Lower Caves -6/Zion -5/Proximity Caves -5/Factory (discovered 3 exits: Upp x2 / DSF) -5/DSF -4/Factory -4/Armory (discovered 2 exits: Res x2) History --------- Turn | Location | Event 3 | -11/Scrapyard | Discovered new exit (range 15) 138 | -11/Scrapyard | Entered Materials 315 | -10/Materials | Build established: Mutant 759 | -10/Materials | Discovered new exit (range 5) 805 | -10/Materials | Discovered new exit (range 12) 1119 | -10/Materials | Discovered new exit (range 4) 1294 | -10/Materials | Discovered new exit (range 9) 1433 | -10/Materials | Discovered new exit (range 5) 1587 | -10/Materials | Discovered new exit (range 9) 2715 | -10/Materials | Repaired Shotgun 2743 | -10/Materials | Repaired Lgt. Treads 2770 | -10/Materials | Repaired Lgt. Treads 2804 | -10/Materials | Repaired Shotgun 2843 | -10/Materials | Repaired Lgt. Nuclear Core 2871 | -10/Materials | Repaired Seismic Detector 3088 | -10/Materials | Entered Mines 3272 | -10/Mines | Assembled infested the area 3740 | -10/Mines | Received a Mining Laser from a helpful Derelict 4021 | -10/Mines | YI-UF0 nonchalantly dropped a Grenade Launcher on the ground 4240 | -10/Mines | Discovered new exit (range 12) 4245 | -10/Mines | Discovered new exit (range 7) 4302 | -10/Mines | Discovered new exit (range 5) 4636 | -10/Mines | Entered Exiles 4637 | -10/Exiles | Identified exit to Mines 4694 | -10/Exiles | Met 8R-AWN 4735 | -10/Exiles | Met EX-HEX 4807 | -10/Exiles | Met EX-BIN 4836 | -10/Exiles | Aligned with FarCom system 4838 | -10/Exiles | Given EX-Vault access code 4896 | -10/Exiles | Opened EX-Vault 4910 | -10/Exiles | Found Field Lobotomy Kit 4961 | -10/Exiles | Warned to stay clear of 0b10 Research branches 5295 | -10/Exiles | Met EX-DEC 5338 | -10/Exiles | Learned location of Zion (-6) 5470 | -10/Exiles | Left Exiles lab with Field Lobotomy Kit 5470 | -10/Exiles | Entered Mines 5536 | -9/Mines | Discovered new exit (range 15) 5655 | -9/Mines | Found the Drone Emporium 5666 | -9/Mines | Found Prototype Device 5813 | -9/Mines | Received a Rocket Launcher from a helpful Derelict 5871 | -9/Mines | Learned location of Recycling (-9) 5972 | -9/Mines | Entered Materials 5972 | -8/Materials | Evolved 4 slots: Propulsion x2, Utility x1, Weapon x1 6657 | -8/Materials | Build established: Scavenger-Skirmisher 6963 | -8/Materials | Central database locked down 6963 | -8/Materials | Identified Splice Drone Bay 7013 | -8/Materials | Discovered new exit (range 9) 7144 | -8/Materials | Repaired Shotgun 7162 | -8/Materials | Repaired Shotgun 7997 | -8/Materials | Discovered new exit (range 16) 8712 | -8/Materials | Assimilated H-61 Shepherd with FLK Orb 8762 | -8/Materials | Discovered new exit (range 8) 9087 | -8/Materials | Entered Factory 9087 | -7/Factory | Accompanied by 1 ally 9087 | -7/Factory | Evolved 2 slots: Utility x2 9424 | -7/Factory | Build established: Hacker-Skirmisher 9538 | -7/Factory | Discovered new exit (range 5) 9645 | -7/Factory | Destroyed 8 combat bots 9746 | -7/Factory | Central database locked down 9993 | -7/Factory | Repaired Corrupted Transmission Jammer 10187 | -7/Factory | Build established: Skirmisher 10259 | -7/Factory | Discovered new exit (range 13) 10763 | -7/Factory | Discovered new exit (range 9) 11341 | -7/Factory | Watched by a mysterious "MATRIX" hacker 11464 | -7/Factory | Discovered new exit (range 18) 11760 | -7/Factory | Build established: Gunner 12074 | -7/Factory | Identified exit to Lower Caves 13481 | -7/Factory | Repaired Prc. Assault Rifle 13526 | -7/Factory | Repaired Kinecellerator 13566 | -7/Factory | Repaired Adv. Treads+ 13605 | -7/Factory | Repaired Adv. Treads+ 13643 | -7/Factory | Repaired Arm. Treads 13715 | -7/Factory | Repaired Prc. Assault Rifle 13761 | -7/Factory | Repaired Imp. Medium Armor Plating 13806 | -7/Factory | Repaired Med. Reflective Plating 13844 | -7/Factory | Repaired Arm. Treads 13887 | -7/Factory | Repaired Arm. Treads 14340 | -7/Factory | Build established: Scavenger-Skirmisher 14687 | -7/Factory | First assault squad dispatched 14884 | -7/Factory | Build established: Scavenger-Gunner 15141 | -7/Factory | Repaired Adv. Treads+ 15187 | -7/Factory | Repaired Dynamic Insulation System 15271 | -7/Factory | Repaired Prc. Assault Rifle 15523 | -7/Factory | Entered Lower Caves 15779 | -7/Lower Caves | Ambushed by research squad 15783 | -7/Lower Caves | Core integrity fell below 50% 16209 | -7/Lower Caves | Discovered new exit (range 16) 16333 | -7/Lower Caves | Entered another Lower Caves area 16376 | -7/Lower Caves | Discovered new exit (range 13) 16520 | -7/Lower Caves | Attracted the attention of an 0b10 checkpoint 16664 | -7/Lower Caves | Learned location of 2 exits from Factory 16775 | -7/Lower Caves | Attacked by a delusional Derelict stockpiling parts 16888 | -7/Lower Caves | Encountered a Warlord checkpoint 16896 | -7/Lower Caves | Discovered new exit (range 14) 17039 | -7/Lower Caves | Entered Data Miner 17039 | -7/Data Miner | Discovered new exit (range 7) 17070 | -7/Data Miner | Met Data Miner 17101 | -7/Data Miner | Learned location of Section 7 (-2) 17101 | -7/Data Miner | Acquired the access code to Warlord's prototype stash 17122 | -7/Data Miner | Received God Mode back door access code from Data Miner 17159 | -7/Data Miner | Entered Proximity Caves 17246 | -6/Proximity Caves | Build established: Scavenger-Tank 17248 | -6/Proximity Caves | Spotter reported a threat 17417 | -6/Proximity Caves | Spotter reported a threat 17470 | -6/Proximity Caves | Spotter reported a threat 17526 | -6/Proximity Caves | Attracted the attention of an 0b10 checkpoint 17528 | -6/Proximity Caves | Spotter reported a threat 17759 | -6/Proximity Caves | Lost 3 parts (2n1u) 17826 | -6/Proximity Caves | Spotted B-75 Beast 17855 | -6/Proximity Caves | Destroyed B-75 Beast 17884 | -6/Proximity Caves | Lost 4 parts (2n1u1w) 17886 | -6/Proximity Caves | Learned 4 Factory zone layouts 17935 | -6/Proximity Caves | Escorted by Enhanced Grunt 18071 | -6/Proximity Caves | Discovered new exit (range 8) 18091 | -6/Proximity Caves | Entered Factory 18091 | -6/Factory | Accompanied by 1 ally 18091 | -6/Factory | Evolved 2 slots: Propulsion x1, Weapon x1 18092 | -6/Factory | Identified exit to Extension 18092 | -6/Factory | Identified exit to Lower Caves 18131 | -6/Factory | Build established: Tank 18441 | -6/Factory | Search patrols dispatched 18582 | -6/Factory | Central database locked down 18615 | -6/Factory | Build established: Scavenger-Skirmisher 18763 | -6/Factory | Discovered exit to Lower Caves (range 3) 18791 | -6/Factory | First assault squad dispatched 18840 | -6/Factory | Entered Lower Caves 18866 | -6/Lower Caves | Encountered a Warlord checkpoint 19143 | -6/Lower Caves | Build established: Scavenger-Tank 19221 | -6/Lower Caves | Discovered new exit (range 8) 19341 | -6/Lower Caves | Entered another Lower Caves area 19656 | -6/Lower Caves | Build established: Scavenger-Skirmisher 19671 | -6/Lower Caves | Learned Factory trap positions 19932 | -6/Lower Caves | Discovered new exit (range 5) 19948 | -6/Lower Caves | Entered Zion 20020 | -6/Zion | Discovered new exit (range 16) 20220 | -6/Zion | Learned Factory terminal intel 20519 | -6/Zion | Acquired unknown access codes intercepted by a Zionite 21152 | -6/Zion | Rebuked by Imprinter 22261 | -6/Zion | Found Prototype Device 22280 | -6/Zion | Identified Mobile Refinery Mk. CCLXVII 22292 | -6/Zion | Entered Proximity Caves 22303 | -5/Proximity Caves | Identified exit to Factory 22417 | -5/Proximity Caves | Attracted the attention of an 0b10 outpost 22608 | -5/Proximity Caves | Build established: Scavenger-Tank 22844 | -5/Proximity Caves | Learned Factory emergency access door positions 22963 | -5/Proximity Caves | Entered Factory 22963 | -5/Factory | Evolved 2 slots: Utility x1, Weapon x1 22964 | -5/Factory | Loaded intel: 87 trap records 22966 | -5/Factory | Loaded intel: 26 terminal locations 22987 | -5/Factory | Identified exit to Upper Caves 23093 | -5/Factory | Fabricated B-60 Warrior (x3) 23093 | -5/Factory | Identified exit to DSF 23104 | -5/Factory | Entered DSF 23104 | -5/DSF | Accompanied by 3 allies 23128 | -5/DSF | Assimilated H-71 Marshal with FLK Orb 23397 | -5/DSF | Discovered new exit (range 14) 23555 | -5/DSF | Additional patrols routed to DSF 23655 | -5/DSF | Build established: Scavenger-Skirmisher 23677 | -5/DSF | P-70 Sage assimilated allied Warrior 6a 23727 | -5/DSF | Entered Factory 23727 | -4/Factory | Accompanied by 3 allies 23727 | -4/Factory | Evolved 2 slots: Propulsion x1, Utility x1 23829 | -4/Factory | Garrison activated, responded to threat 24510 | -4/Factory | Fabricated Enh. Hardcell Cannon (x2) 24663 | -4/Factory | Fabricated Lgt. Regenerative Plating? 24792 | -4/Factory | Fabricated Arm. Medium Treads (x2) 24910 | -4/Factory | Fabricated Arm. Medium Treads (x2) 25422 | -4/Factory | Repaired Lyr. Heavy Armor Plating 25552 | -4/Factory | Build established: Fabricator-Skirmisher 25993 | -4/Factory | Discovered new exit (range 16) 26227 | -4/Factory | First assault squad dispatched 26254 | -4/Factory | Incoming assault squad redirected 26480 | -4/Factory | System corruption reached 10% 26493 | -4/Factory | Incoming assault squad redirected 26498 | -4/Factory | Entered Armory 26908 | -4/Armory | Build established: Skirmisher 26998 | -4/Armory | First assault squad dispatched 27270 | -4/Armory | Incoming assault squad redirected 27271 | -4/Armory | Lost 4 allies 27282 | -4/Armory | Assimilated G-67 Veteran with FLK Orb 27285 | -4/Armory | Assimilated G-67 Veteran with FLK Orb 27288 | -4/Armory | Assimilated G-67 Veteran with FLK Orb 27312 | -4/Armory | Lost 6 parts (1p2u3w) 27526 | -4/Armory | Incoming assault squad redirected 27539 | -4/Armory | Repaired Enh. Hardcell Cannon 27571 | -4/Armory | Found Prototype Launcher 27571 | -4/Armory | Identified Com. Tesla Bomb Launcher 27758 | -4/Armory | Lost 3 allies 27768 | -4/Armory | Destroyed 7 combat bots 27769 | -4/Armory | Incoming assault squad redirected 28021 | -4/Armory | Incoming assault squad redirected 28033 | -4/Armory | Lost 4 allies 28037 | -4/Armory | Spotted B-86 Titan 28046 | -4/Armory | Destroyed 8 combat bots 28078 | -4/Armory | Core integrity fell below 50% 28101 | -4/Armory | Core integrity fell below 20% 28132 | -4/Armory | Identified exit to Research 28132 | -4/Armory | Energy Cycler disabled 28132 | -4/Armory | Targeted by mysterious "MATRIX" hacker 28136 | -4/Armory | Destroyed by G-67 Veteran with Plasma Rifle Last Messages --------------- >>Access(Main) Found 2 level access points to Research: (96,36) (17,44) Map updated. 28132_ ALERT: Power surge detected, dispatching additional patrols. >>Force(Sabotage) SYSTEM_VULNERABLE[Energy Cycler] NETWORK_OVERLOAD COORDINATES_RETRIEVED 28132_ ALERT: Suspicious activity at Terminal A005. Dispatching Investigation squad. 1 k4'N7 8EL1eVe 17 700K 7H12 L0NG, 8U7 1 jU57 D15C0vERed u 4rE 7H47 cogmind 7H1N6 eVeRY0Ne'2 8eEn r4v1N' 480u7. PU771N' U 1N uR pl4CE W1Ll 8e 4 n1CE d1G174l 7r0Phy. IT'S ON. 28133_ Slug penetrates Terminal. 28133_ Terminal disabled. [Achievement: Punisher] Map ----- +----------------------------------------------------+ | ?????????????????????????????????????????????????? | | ?????????????????????????????????????????????????? | | ?????????????????????????????????????????????????? | | ?????????????????????????????????????????????????? | | ?????????????????????????????????????????????????? | | ?????????????????????????????????????????????????? | | ?????????????????????????????????????????????????? | | ?????????????????????????????????????????????????? | | ?????????????????????????????????????????????????? | | ?????????????????????????????????????????????????? | | ??????????????????????????????????g??????????????? | | ???????????????????????????ggd???????????????????? | | ?????????????????????????????????????????????????? | | ??????????????# #?????????# #???# "" ??????? | | ??????????????# ####??????# #???# " ??????? | | ????????????### l#??????# #???# "F ??????? | | ???????????? l#??????# #???# "" ??????? | | ???????????? o l#??????# #???# ??????? | | ???????????? ########### #######+##??????? | | ???????????? #??# ######### | | ????????????##### ^ #?## ## | | ????????????##??# ### # | | ???????????? #??# g p | | ???????????? #??# g######### # | | ???????????? #### #???###### ## | | ???????????? + @ #???# # ######### | | ???????????? ####+###########/##### + | | ???????????? # ## """g # g #########?? | | ???????????? + ## " ![[/Y #?????????? | | ???????????? # ## ![ # #?????????? | | ????????????## ## ! ![ ######?????????? | | ?????????????######################??????????????? | | ?????????????????????????????????????????????????? | | ?????????????????????????????????????????????????? | | ?????????????????????????????????????????????????? | | ?????????????????????????????????????????????????? | | ?????????????????????????????????????????????????? | | ?????????????????????????????????????????????????? | | ?????????????????????????????????????????????????? | | ?????????????????????????????????????????????????? | | ?????????????????????????????????????????????????? | | ?????????????????????????????????????????????????? | | | | | | | | | | | | | | | | | +----------------------------------------------------+ Best States ------------- Heat Dissipation 120 Coolant Potential 80 Energy Generation 25 Energy Capacity 350 Matter Stores 300 Matter Capacity 300 Sight Range 23 Robot Scan Range 15 Terrain Scan Density 10 Jamming Range 14 EM Shielding 2 Corruption Block 8 Armor Coverage 600 Resistance: KI 20 Resistance: TH 30 Resistance: EM 20 Weapon Shielding 90 Evasion (%) 50 Targeting Accuracy 8 Target Analysis 6 Recoil Reduction 6 Matter Filtering 50 Kinecelleration 40 Offensive Hacking 20 Defensive Hacking 10 Authchip Count 9 Item Schematics ----------------- Hcp. Storage Unit | -8/Materials | Scanalyzed Combat Drone Bay | -7/Data Miner | Free Lgt. Regenerative Plating | -7/Data Miner | Free Cld. Cesium-ion Thruster | -7/Data Miner | Free Exp. Targeting Computer | -7/Data Miner | Free Antimatter Cannon | -7/Data Miner | Free Field Propulsion Drive | -7/Data Miner | Free Mni. Drone Bay | -7/Data Miner | Free Wave Gun | -7/Data Miner | Free Flexi-carbon Leg | -7/Data Miner | Free Imp. Shock Absorption System | -7/Data Miner | Free Imp. Dynamic Insulation System | -7/Data Miner | Free Dispersion Rifle | -7/Data Miner | Free Imp. Remote Shield | -7/Data Miner | Free Cloaking Device | -6/Zion | Archive Imp. Remote Datajack | -6/Zion | Archive Thermal Shield | -6/Zion | Archive Power Amplifier | -6/Zion | Archive Hvy. Machine Gun | -6/Zion | Archive Adv. Recoil Stabilizer | -6/Zion | Archive Adv. Target Analyzer | -6/Zion | Archive Hyp. Gauss Cannon | -6/Zion | Archive Force Field | -6/Zion | Archive Matter Neutralizer | -6/Zion | Archive Hyp. Gauss Rifle | -6/Zion | Archive Adv. Cooling System | -6/Zion | Archive Imp. Proton Missile Launcher | -6/Zion | Archive Arm. Medium Treads | -6/Zion | Archive Robot Schematics ------------------ C-17 Slicer | -7/Data Miner | Free H-66 Slayer | -7/Data Miner | Free R-10 Processor | -7/Data Miner | Free G-47 Trooper | -7/Data Miner | Free S-27 Virus | -7/Data Miner | Free A-15 Conveyor | -7/Data Miner | Free G-50 Soldier | -7/Data Miner | Free P-60 Hacker | -6/Zion | Archive R-06 Scavenger | -6/Zion | Archive D-83 Annihilator | -6/Zion | Archive Fabricated ------------ B-60 Warrior | x3 | -5/Factory | Preloaded Enh. Hardcell Cannon | x2 | -4/Factory | Preloaded, Authchip Lgt. Regenerative Plating | x1 | -4/Factory | Authchip Arm. Medium Treads | x2 | -4/Factory | Authchip Arm. Medium Treads | x2 | -4/Factory | Authchip Repaired ---------- Shotgun | 4% | -10/Materials Lgt. Treads | 16% | -10/Materials Lgt. Treads | 47% | -10/Materials Shotgun | 60% | -10/Materials Lgt. Nuclear Core | 10% | -10/Materials Seismic Detector | 40% | -10/Materials Shotgun | 41% | -8/Materials Shotgun | 54% | -8/Materials Transmission Jammer | 80% | -7/Factory | Corrupted Prc. Assault Rifle | 20% | -7/Factory Kinecellerator | 14% | -7/Factory Adv. Treads | 28% | -7/Factory Adv. Treads | 38% | -7/Factory Arm. Treads | 55% | -7/Factory Prc. Assault Rifle | 56% | -7/Factory Imp. Medium Armor Plating | 62% | -7/Factory Med. Reflective Plating | 56% | -7/Factory Arm. Treads | 63% | -7/Factory Arm. Treads | 73% | -7/Factory Adv. Treads | 31% | -7/Factory Dynamic Insulation System | 25% | -7/Factory Prc. Assault Rifle | 73% | -7/Factory Lyr. Heavy Armor Plating | 16% | -4/Factory Enh. Hardcell Cannon | 15% | -4/Armory Studied --------- Minigun | -7/Factory | Hacked Adv. Treads | -7/Factory | Hacked Gauss Rifle | -6/Factory | Hacked Alien Tech Used ----------------- None Achievements -------------- Punisher Challenges ------------ None Game ------ Seed SurgeTargetSpoofer Manual? 0 Play Time 03:32:08 Cumulative 257.5 hours Start 2026.08.22 @ 20:05:06 End 2026.08.23 @ 19:58:51 Sessions 6 Manual Loads 0 Difficulty Rogue Special Mode None Game No. 145 Rogue 145 Adventurer 0 Explorer 0 Win Type - Total 5 Types 5/0/0/0/0/0/0/0/0/0 Lore% 81 Gallery% 70 Achievement% 61 Wizard Run 0 Options --------- Layout 1 ASCII 0 Keyboard 0 Movement Numpad Keybinds 0 Fullscreen 1 Font 24/Smallcaps Map View 50x35 Zoom Use 0% Tactical HUD 1 Map Filters NONE Filters NONE Steam 1 RUN: 11204fb3-0111-4250-b7ae-564dc84e84ee